[Event "*** Titled Tuesday Blitz"]
[Site "Chess.com"]
[Date "2020.02.04"]
[Round "5"]
[White "HouseOfDurin"]
[Black "Chigorinetz"]
[Result "0-1"]
[WhiteElo "2071"]
[BlackElo "2564"]
[TimeControl "180+2"]
[EndTime "10:08:10 PST"]
[Termination "Chigorinetz won by resignation"]

1. d4 {[%clk 0:03:01.9]} 1... d5 {[%clk 0:03:00.4]} 2. Bg5 {[%clk 0:03:02.7]}
2... Bg4 {[%clk 0:03:00.1]} 3. f3 {[%clk 0:02:53]} 3... Bh5 {[%clk 0:02:59.2]}
4. e3 {[%clk 0:02:49.5]} 4... c5 {[%clk 0:02:58.5]} 5. Bb5+ {[%clk 0:02:45.1]}
5... Nc6 {[%clk 0:02:56.3]} 6. Ne2 {[%clk 0:02:45.6]} 6... Qb6 {[%clk
0:02:47.3]} 7. Nbc3 {[%clk 0:02:41.6]} 7... e6 {[%clk 0:02:47.3]} 8. Bxc6+
{[%clk 0:02:31.4]} 8... bxc6 {[%clk 0:02:45.5]} 9. Na4 {[%clk 0:02:20.1]} 9...
Qa5+ {[%clk 0:02:45.9]} 10. c3 {[%clk 0:02:21.1]} 10... Nf6 {[%clk 0:02:44]} 11.
Bxf6 {[%clk 0:02:21.2]} 11... gxf6 {[%clk 0:02:44.1]} 12. dxc5 {[%clk
0:02:10.6]} 12... e5 {[%clk 0:02:40.4]} 13. b4 {[%clk 0:02:04.5]} 13... Qb5
{[%clk 0:02:32.7]} 14. Nb2 {[%clk 0:01:57.5]} 14... Bh6 {[%clk 0:02:32]} 15. Kf2
{[%clk 0:01:49.6]} 15... a5 {[%clk 0:02:28.8]} 16. a4 {[%clk 0:01:43.1]} 16...
Qb8 {[%clk 0:02:29.1]} 17. b5 {[%clk 0:01:11.2]} 17... cxb5 {[%clk 0:02:28.2]}
18. Qxd5 {[%clk 0:01:10.8]} 18... O-O {[%clk 0:02:26.2]} 19. Ng3 {[%clk
0:00:34.7]} 19... Bg6 {[%clk 0:02:26]} 20. e4 {[%clk 0:00:35.8]} 20... Rd8
{[%clk 0:02:24.2]} 21. Qa2 {[%clk 0:00:18.1]} 21... Rd2+ {[%clk 0:02:26.1]} 22.
Ne2 {[%clk 0:00:18.9]} 22... bxa4 {[%clk 0:02:19.9]} 23. Rhb1 {[%clk 0:00:17.4]}
23... f5 {[%clk 0:02:16.1]} 24. Qa3 {[%clk 0:00:12.3]} 24... fxe4 {[%clk
0:02:15.7]} 25. Nc4 {[%clk 0:00:13.3]} 25... Qd8 {[%clk 0:02:08.8]} 26. Nxd2
{[%clk 0:00:12.5]} 26... e3+ {[%clk 0:02:08.4]} 27. Kf1 {[%clk 0:00:09.9]} 27...
exd2 {[%clk 0:02:10.3]} 28. Rd1 {[%clk 0:00:10.6]} 28... Qd3 {[%clk 0:02:10.7]}
29. Ra2 {[%clk 0:00:09.8]} 29... Qc4 {[%clk 0:02:05.2]} 30. Qxa4 {[%clk
0:00:10]} 30... Qxc5 {[%clk 0:02:02.8]} 31. Raxd2 {[%clk 0:00:08.8]} 31... Bxd2
{[%clk 0:02:02.3]} 32. Rxd2 {[%clk 0:00:10.7]} 32... Bf5 {[%clk 0:01:59.4]} 33.
g4 {[%clk 0:00:10.5]} 33... Be6 {[%clk 0:02:00.1]} 34. Qe4 {[%clk 0:00:08.5]}
34... Rb8 {[%clk 0:01:59.6]} 35. Kg2 {[%clk 0:00:07.9]} 35... Qc4 {[%clk
0:01:57.2]} 36. Qxe5 {[%clk 0:00:05]} 36... Ra8 {[%clk 0:01:54.8]} 37. Qd4
{[%clk 0:00:04.4]} 37... a4 {[%clk 0:01:54.7]} 38. Qxc4 {[%clk 0:00:04.2]} 38...
Bxc4 {[%clk 0:01:56.6]} 39. Nc1 {[%clk 0:00:03.2]} 39... a3 {[%clk 0:01:55.1]}
40. Rd4 {[%clk 0:00:03.9]} 40... Be6 {[%clk 0:01:53.7]} 41. c4 {[%clk
0:00:04.9]} 41... a2 {[%clk 0:01:49.9]} 42. Nxa2 {[%clk 0:00:06]} 42... Rxa2+
{[%clk 0:01:51.7]} 43. Kg3 {[%clk 0:00:07.6]} 43... Rc2 {[%clk 0:01:52.1]} 44.
Rd8+ {[%clk 0:00:06.6]} 44... Kg7 {[%clk 0:01:52.2]} 45. h4 {[%clk 0:00:07.4]}
45... Rxc4 {[%clk 0:01:52.5]} 46. Rd3 {[%clk 0:00:08.7]} 46... Rb4 {[%clk
0:01:52.4]} 47. h5 {[%clk 0:00:06.9]} 47... Rb3 {[%clk 0:01:52.5]} 48. Rd4
{[%clk 0:00:08.2]} 48... h6 {[%clk 0:01:52.3]} 49. Rf4 {[%clk 0:00:08.3]} 49...
Bd5 {[%clk 0:01:49.5]} 50. Rf5 {[%clk 0:00:08.5]} 50... Bb7 {[%clk 0:01:47.9]}
51. g5 {[%clk 0:00:08.5]} 51... hxg5 {[%clk 0:01:45.7]} 52. Rxg5+ {[%clk
0:00:10.4]} 52... Kf6 {[%clk 0:01:46.7]} 53. Rg8 {[%clk 0:00:09.2]} 53... Bxf3
{[%clk 0:01:48]} 54. Kh4 {[%clk 0:00:10.4]} 54... Rb4+ {[%clk 0:01:46.1]} 55.
Kh3 {[%clk 0:00:09.4]} 55... Bxh5 {[%clk 0:01:46.8]} 56. Kg3 {[%clk 0:00:09.2]}
56... Bg6 {[%clk 0:01:47.9]} 57. Ra8 {[%clk 0:00:08.4]} 57... Kg5 {[%clk
0:01:48.4]} 58. Ra5+ {[%clk 0:00:08.6]} 58... f5 {[%clk 0:01:49.6]} 59. Kf2
{[%clk 0:00:09.7]} 59... Rb2+ {[%clk 0:01:49.3]} 60. Kf3 {[%clk 0:00:10.4]}
60... Rb3+ {[%clk 0:01:50.2]} 61. Kf2 {[%clk 0:00:11.1]} 61... Kg4 {[%clk
0:01:50.5]} 62. Ra8 {[%clk 0:00:10.7]} 62... Rb2+ {[%clk 0:01:48.9]} 63. Ke1
{[%clk 0:00:10.2]} 63... f4 {[%clk 0:01:48.3]} 64. Rg8 {[%clk 0:00:10.8]} 64...
Kf5 {[%clk 0:01:49.3]} 65. Rf8+ {[%clk 0:00:11.2]} 65... Ke4 {[%clk 0:01:50]}
66. Ra8 {[%clk 0:00:10.3]} 66... Ke3 {[%clk 0:01:50]} 67. Ra3+ {[%clk 0:00:10]}
67... Bd3 {[%clk 0:01:50.4]} 68. Rc3 {[%clk 0:00:08.9]} 68... Rb1+ {[%clk
0:01:50.2]} 0-1

[Event "*** Titled Tuesday Blitz"]
[Site "Chess.com"]
[Date "2020.02.04"]
[Round "5"]
[White "Volodar_Murzin"]
[Black "W_Amadeus"]
[Result "1-0"]
[WhiteElo "2593"]
[BlackElo "2727"]
[TimeControl "180+2"]
[EndTime "10:08:12 PST"]
[Termination "Volodar_Murzin won by resignation"]

1. d4 {[%clk 0:03:01.9]} 1... Nf6 {[%clk 0:03:00]} 2. Nf3 {[%clk 0:03:02.3]}
2... d5 {[%clk 0:03:00.7]} 3. Bf4 {[%clk 0:03:03.3]} 3... c5 {[%clk 0:02:59.7]}
4. e3 {[%clk 0:03:02.4]} 4... Nc6 {[%clk 0:03:01.2]} 5. Nbd2 {[%clk 0:03:02.5]}
5... Qb6 {[%clk 0:03:02.6]} 6. dxc5 {[%clk 0:02:33.7]} 6... Qxb2 {[%clk
0:03:00.9]} 7. Rb1 {[%clk 0:02:35.4]} 7... Qc3 {[%clk 0:03:01.5]} 8. Bb5 {[%clk
0:02:33.8]} 8... e6 {[%clk 0:03:01.4]} 9. O-O {[%clk 0:02:32.2]} 9... Be7 {[%clk
0:03:00.3]} 10. Nb3 {[%clk 0:02:29.2]} 10... O-O {[%clk 0:02:56.2]} 11. Bxc6
{[%clk 0:02:21.9]} 11... bxc6 {[%clk 0:02:56.3]} 12. Qd4 {[%clk 0:02:23.3]}
12... Ne4 {[%clk 0:02:22.1]} 13. Be5 {[%clk 0:02:06.9]} 13... Qxd4 {[%clk
0:02:14]} 14. exd4 {[%clk 0:02:03]} 14... a5 {[%clk 0:01:07.3]} 15. Rfe1 {[%clk
0:01:56.8]} 15... f6 {[%clk 0:00:49]} 16. Bc7 {[%clk 0:01:52.3]} 16... Bd8
{[%clk 0:00:49.5]} 17. Bxd8 {[%clk 0:01:51.2]} 17... Rxd8 {[%clk 0:00:51.4]} 18.
Nbd2 {[%clk 0:01:47.8]} 18... e5 {[%clk 0:00:38.3]} 19. dxe5 {[%clk 0:01:43.9]}
19... Nxc5 {[%clk 0:00:37.1]} 20. Nd4 {[%clk 0:01:39.6]} 20... Bd7 {[%clk
0:00:34.9]} 21. e6 {[%clk 0:01:37.1]} 21... Be8 {[%clk 0:00:36.2]} 22. Rb6
{[%clk 0:01:27.6]} 22... Na4 {[%clk 0:00:27.9]} 23. Rb7 {[%clk 0:01:21.8]} 23...
Nc5 {[%clk 0:00:26.5]} 24. Rc7 {[%clk 0:01:07.6]} 24... Na6 {[%clk 0:00:17.5]}
25. Re7 {[%clk 0:01:04.4]} 25... Kf8 {[%clk 0:00:11.9]} 26. Nf5 {[%clk
0:00:48.1]} 26... Bg6 {[%clk 0:00:06.9]} 27. Rb7 {[%clk 0:00:46.9]} 27... Rdb8
{[%clk 0:00:04.8]} 28. e7+ {[%clk 0:00:38.5]} 28... Kg8 {[%clk 0:00:06]} 29.
Rxb8+ {[%clk 0:00:37.8]} 29... Rxb8 {[%clk 0:00:07.9]} 30. Nd6 {[%clk
0:00:39.2]} 30... Nc7 {[%clk 0:00:09.4]} 31. Nb3 {[%clk 0:00:39.3]} 31... Ne8
{[%clk 0:00:09.9]} 32. Nxe8 {[%clk 0:00:37.9]} 32... Bxe8 {[%clk 0:00:11.8]} 33.
Nxa5 {[%clk 0:00:34.6]} 33... Kf7 {[%clk 0:00:12.8]} 34. c4 {[%clk 0:00:22.6]}
34... Rb6 {[%clk 0:00:03]} 35. c5 {[%clk 0:00:17.6]} 35... Rb5 {[%clk
0:00:02.9]} 36. Nb3 {[%clk 0:00:18.2]} 36... Rb7 {[%clk 0:00:04.1]} 37. Nd4
{[%clk 0:00:19]} 37... Rxe7 {[%clk 0:00:05.1]} 38. Rxe7+ {[%clk 0:00:18.7]}
38... Kxe7 {[%clk 0:00:07]} 39. Kf1 {[%clk 0:00:19.9]} 39... Kd7 {[%clk
0:00:07.5]} 40. Ke2 {[%clk 0:00:21]} 40... Bg6 {[%clk 0:00:08.5]} 41. Kd2 {[%clk
0:00:20.8]} 41... Bf7 {[%clk 0:00:06.8]} 42. Kc3 {[%clk 0:00:21.5]} 42... Kc7
{[%clk 0:00:08]} 43. Kb4 {[%clk 0:00:23]} 43... Kb7 {[%clk 0:00:07.2]} 44. Nf5
{[%clk 0:00:23.6]} 44... Bg6 {[%clk 0:00:05.1]} 45. Nxg7 {[%clk 0:00:24.2]}
45... Kc7 {[%clk 0:00:05.8]} 46. Ne6+ {[%clk 0:00:25.3]} 46... Kd7 {[%clk
0:00:06.3]} 47. Nd4 {[%clk 0:00:26.6]} 47... Kc7 {[%clk 0:00:06.9]} 48. Ne6+
{[%clk 0:00:27.4]} 48... Kd7 {[%clk 0:00:07.9]} 49. Nf8+ {[%clk 0:00:28.4]}
49... Kc7 {[%clk 0:00:06]} 50. Nxg6 {[%clk 0:00:29.3]} 50... hxg6 {[%clk
0:00:07.9]} 51. h4 {[%clk 0:00:29.7]} 51... f5 {[%clk 0:00:09.2]} 52. g3 {[%clk
0:00:31.1]} 1-0

[Event "*** Titled Tuesday Blitz"]
[Site "Chess.com"]
[Date "2020.02.04"]
[Round "5"]
[White "Leonid_Starozhilov"]
[Black "GMSrinath"]
[Result "0-1"]
[WhiteElo "2701"]
[BlackElo "2978"]
[TimeControl "180+2"]
[EndTime "10:08:33 PST"]
[Termination "GMSrinath won by resignation"]

1. e4 {[%clk 0:03:01.4]} 1... c5 {[%clk 0:02:59.5]} 2. Nf3 {[%clk 0:03:02.3]}
2... d6 {[%clk 0:02:56.5]} 3. Bb5+ {[%clk 0:03:03]} 3... Nd7 {[%clk 0:02:56.8]}
4. O-O {[%clk 0:03:03.4]} 4... a6 {[%clk 0:02:57.1]} 5. Bxd7+ {[%clk 0:03:04.5]}
5... Bxd7 {[%clk 0:02:59]} 6. c3 {[%clk 0:03:05.5]} 6... Nf6 {[%clk 0:02:59.1]}
7. Re1 {[%clk 0:03:06.4]} 7... g6 {[%clk 0:03:00]} 8. d4 {[%clk 0:03:07.4]} 8...
cxd4 {[%clk 0:03:01.9]} 9. cxd4 {[%clk 0:03:08.8]} 9... Bg7 {[%clk 0:03:03.5]}
10. h3 {[%clk 0:03:08.9]} 10... O-O {[%clk 0:03:04.7]} 11. Nc3 {[%clk
0:03:10.5]} 11... Rc8 {[%clk 0:03:06.2]} 12. Bg5 {[%clk 0:03:10.8]} 12... b5
{[%clk 0:03:07.1]} 13. e5 {[%clk 0:03:11.8]} 13... dxe5 {[%clk 0:02:40.7]} 14.
dxe5 {[%clk 0:03:11.4]} 14... b4 {[%clk 0:02:42.2]} 15. exf6 {[%clk 0:02:54.7]}
15... exf6 {[%clk 0:02:44.1]} 16. Bd2 {[%clk 0:02:55.4]} 16... bxc3 {[%clk
0:02:43.2]} 17. Bxc3 {[%clk 0:02:57.3]} 17... Be6 {[%clk 0:02:34.5]} 18. a3
{[%clk 0:02:30.7]} 18... Qb6 {[%clk 0:02:29.3]} 19. Qd4 {[%clk 0:02:28]} 19...
Qb5 {[%clk 0:02:15.7]} 20. Rad1 {[%clk 0:02:11.2]} 20... Rc4 {[%clk 0:02:06]}
21. Qd6 {[%clk 0:02:05.6]} 21... Qh5 {[%clk 0:01:00.5]} 22. Rd4 {[%clk 0:01:49]}
22... Rcc8 {[%clk 0:00:58.9]} 23. Red1 {[%clk 0:01:44.2]} 23... Rfe8 {[%clk
0:00:56.4]} 24. Qxa6 {[%clk 0:00:49.3]} 24... Qc5 {[%clk 0:00:40.7]} 25. Qa5
{[%clk 0:00:42.9]} 25... Qc6 {[%clk 0:00:39.7]} 26. Qa4 {[%clk 0:00:25.6]} 26...
Qxa4 {[%clk 0:00:40]} 27. Rxa4 {[%clk 0:00:25.9]} 27... Bb3 {[%clk 0:00:41.9]}
28. Rdd4 {[%clk 0:00:21.2]} 28... f5 {[%clk 0:00:39.4]} 29. Rab4 {[%clk
0:00:21.5]} 29... Bxd4 {[%clk 0:00:39.6]} 30. Rxd4 {[%clk 0:00:19.7]} 30... Red8
{[%clk 0:00:37.6]} 31. Rxd8+ {[%clk 0:00:20.2]} 31... Rxd8 {[%clk 0:00:39.5]}
32. Nd4 {[%clk 0:00:21.9]} 32... Bd1 {[%clk 0:00:38.6]} 33. f3 {[%clk
0:00:21.9]} 33... Re8 {[%clk 0:00:38.4]} 34. Kf2 {[%clk 0:00:22.8]} 34... f6
{[%clk 0:00:40]} 35. h4 {[%clk 0:00:16.8]} 35... Kf7 {[%clk 0:00:40.6]} 36. h5
{[%clk 0:00:16.8]} 36... f4 {[%clk 0:00:41.5]} 37. hxg6+ {[%clk 0:00:16.9]}
37... hxg6 {[%clk 0:00:43.4]} 38. g3 {[%clk 0:00:11.8]} 38... fxg3+ {[%clk
0:00:43.7]} 39. Kxg3 {[%clk 0:00:13.7]} 39... g5 {[%clk 0:00:45.2]} 40. Kf2
{[%clk 0:00:13.6]} 40... Kg6 {[%clk 0:00:46.4]} 41. Kg3 {[%clk 0:00:11.6]} 41...
f5 {[%clk 0:00:46.8]} 42. Kf2 {[%clk 0:00:13]} 42... f4 {[%clk 0:00:46.8]} 43.
Bb4 {[%clk 0:00:09.4]} 43... Re3 {[%clk 0:00:39.1]} 44. Bc3 {[%clk 0:00:08.4]}
44... Rd3 {[%clk 0:00:36.5]} 45. Nc6 {[%clk 0:00:08.6]} 45... Rxf3+ {[%clk
0:00:36.7]} 46. Ke1 {[%clk 0:00:10.1]} 46... Re3+ {[%clk 0:00:28.4]} 47. Kxd1
{[%clk 0:00:10.3]} 47... g4 {[%clk 0:00:29.8]} 48. Ne5+ {[%clk 0:00:07]} 48...
Kf5 {[%clk 0:00:30.7]} 49. Kd2 {[%clk 0:00:05.4]} 49... g3 {[%clk 0:00:25.8]}
50. Nc4 {[%clk 0:00:03.4]} 50... Re6 {[%clk 0:00:26.2]} 51. Kd3 {[%clk
0:00:04.3]} 51... f3 {[%clk 0:00:26.4]} 52. Bd4 {[%clk 0:00:05.5]} 52... f2
{[%clk 0:00:25.1]} 53. Nd2 {[%clk 0:00:06.9]} 53... Rd6 {[%clk 0:00:20.4]} 54.
Ke2 {[%clk 0:00:07.6]} 54... Rxd4 {[%clk 0:00:21.1]} 0-1

[Event "*** Titled Tuesday Blitz"]
[Site "Chess.com"]
[Date "2020.02.04"]
[Round "5"]
[White "Shield12"]
[Black "Aygehovit1992"]
[Result "1-0"]
[WhiteElo "2889"]
[BlackElo "2644"]
[TimeControl "180+2"]
[EndTime "10:08:44 PST"]
[Termination "Shield12 won by resignation"]

1. e4 {[%clk 0:03:01.9]} 1... c5 {[%clk 0:02:30.2]} 2. Nf3 {[%clk 0:03:02.8]}
2... d6 {[%clk 0:02:30.9]} 3. Nc3 {[%clk 0:03:04]} 3... e5 {[%clk 0:02:30]} 4.
Bc4 {[%clk 0:03:01.7]} 4... Be7 {[%clk 0:02:29.9]} 5. d3 {[%clk 0:03:02.3]} 5...
Nc6 {[%clk 0:02:29.5]} 6. a3 {[%clk 0:03:03.4]} 6... h6 {[%clk 0:02:20.7]} 7. b4
{[%clk 0:03:01.4]} 7... cxb4 {[%clk 0:02:19.5]} 8. axb4 {[%clk 0:03:03.3]} 8...
Nxb4 {[%clk 0:02:18.1]} 9. Ba3 {[%clk 0:03:03.5]} 9... Nc6 {[%clk 0:02:18.7]}
10. Nd5 {[%clk 0:02:56.5]} 10... Nf6 {[%clk 0:02:18.6]} 11. O-O {[%clk
0:02:38.5]} 11... O-O {[%clk 0:02:14.6]} 12. Nd2 {[%clk 0:02:36.9]} 12... Nxd5
{[%clk 0:02:10.2]} 13. Bxd5 {[%clk 0:02:37.1]} 13... Be6 {[%clk 0:02:05.9]} 14.
Bxe6 {[%clk 0:02:32.8]} 14... fxe6 {[%clk 0:02:06.6]} 15. Rb1 {[%clk 0:02:30.2]}
15... d5 {[%clk 0:02:02.7]} 16. Bb2 {[%clk 0:02:22.6]} 16... Rc8 {[%clk
0:01:39.9]} 17. Qg4 {[%clk 0:02:22.1]} 17... Qd7 {[%clk 0:01:40.8]} 18. exd5
{[%clk 0:02:21.9]} 18... Qxd5 {[%clk 0:01:39.7]} 19. Ne4 {[%clk 0:02:17.5]}
19... Rf4 {[%clk 0:01:30.9]} 20. Qg3 {[%clk 0:02:14.2]} 20... Rcf8 {[%clk
0:01:21.6]} 21. Bc1 {[%clk 0:02:13.1]} 21... Nd4 {[%clk 0:01:18.7]} 22. Qe3
{[%clk 0:01:33.6]} 22... b6 {[%clk 0:01:04.9]} 23. c3 {[%clk 0:01:33.6]} 23...
Nc6 {[%clk 0:00:50.9]} 24. Qe2 {[%clk 0:01:33.9]} 24... R4f7 {[%clk 0:00:49.8]}
25. Be3 {[%clk 0:01:24.4]} 25... Qd7 {[%clk 0:00:42.6]} 26. Rfd1 {[%clk
0:01:24]} 26... Qc7 {[%clk 0:00:30.9]} 27. Qg4 {[%clk 0:01:24.7]} 27... Qc8
{[%clk 0:00:30.7]} 28. Bxh6 {[%clk 0:01:25.5]} 28... Qd7 {[%clk 0:00:22.2]} 29.
Be3 {[%clk 0:01:25.2]} 29... Bd8 {[%clk 0:00:18.4]} 30. g3 {[%clk 0:01:23.7]}
30... Rf5 {[%clk 0:00:17.1]} 31. h4 {[%clk 0:01:24.2]} 31... Qf7 {[%clk
0:00:12]} 32. Kg2 {[%clk 0:01:25.1]} 32... Qh5 {[%clk 0:00:10.2]} 33. Qxh5
{[%clk 0:01:23.5]} 33... Rxh5 {[%clk 0:00:11.7]} 34. Bg5 {[%clk 0:01:23.6]}
34... Bxg5 {[%clk 0:00:09.6]} 35. Nxg5 {[%clk 0:01:24.6]} 35... Rh6 {[%clk
0:00:10.8]} 36. Ra1 {[%clk 0:01:15.2]} 36... Rhf6 {[%clk 0:00:11.1]} 37. Rd2
{[%clk 0:01:15.5]} 37... Rd8 {[%clk 0:00:10.7]} 38. Ra4 {[%clk 0:01:13.7]} 38...
Rd7 {[%clk 0:00:05.6]} 39. Rc4 {[%clk 0:01:14.4]} 39... Ne7 {[%clk 0:00:05]} 40.
Re4 {[%clk 0:01:08.9]} 40... Nc6 {[%clk 0:00:05.1]} 41. Rc4 {[%clk 0:01:08.5]}
41... Ne7 {[%clk 0:00:05.7]} 42. Nf3 {[%clk 0:01:07.2]} 42... Rf5 {[%clk
0:00:04.9]} 43. g4 {[%clk 0:01:06.3]} 43... Rf4 {[%clk 0:00:05.4]} 44. Nxe5
{[%clk 0:01:06.3]} 44... Rxc4 {[%clk 0:00:06.4]} 45. Nxc4 {[%clk 0:01:08.2]}
45... Nd5 {[%clk 0:00:07.5]} 46. Ne5 {[%clk 0:01:05.5]} 46... Rc7 {[%clk
0:00:05.1]} 47. c4 {[%clk 0:01:06.9]} 47... Ne7 {[%clk 0:00:05.4]} 48. Ra2
{[%clk 0:01:05.9]} 48... Kf8 {[%clk 0:00:04.2]} 49. f4 {[%clk 0:01:06.5]} 49...
Ke8 {[%clk 0:00:05.3]} 50. Kf3 {[%clk 0:01:07.9]} 50... Rb7 {[%clk 0:00:04.9]}
51. Ke3 {[%clk 0:01:08.2]} 51... Rc7 {[%clk 0:00:06.1]} 52. h5 {[%clk
0:01:09.3]} 52... Kf8 {[%clk 0:00:06.2]} 53. Ke4 {[%clk 0:01:08.7]} 53... Kg8
{[%clk 0:00:07.3]} 54. d4 {[%clk 0:01:08.6]} 54... Kh7 {[%clk 0:00:08.3]} 55. g5
{[%clk 0:01:07]} 55... Rb7 {[%clk 0:00:08.2]} 56. d5 {[%clk 0:01:06.9]} 56...
exd5+ {[%clk 0:00:08.9]} 57. cxd5 {[%clk 0:01:08.8]} 57... Nc8 {[%clk
0:00:10.4]} 58. Kf5 {[%clk 0:01:08]} 58... Re7 {[%clk 0:00:10.4]} 59. g6+ {[%clk
0:01:06.4]} 59... Kg8 {[%clk 0:00:09.6]} 60. Rc2 {[%clk 0:01:04.1]} 60... Nd6+
{[%clk 0:00:10.2]} 61. Kg4 {[%clk 0:01:05.4]} 61... Rd7 {[%clk 0:00:10.3]} 62.
Nxd7 {[%clk 0:01:05.8]} 1-0

[Event "*** Titled Tuesday Blitz"]
[Site "Chess.com"]
[Date "2020.02.04"]
[Round "5"]
[White "dangerousattack1st"]
[Black "karinachess1"]
[Result "1-0"]
[WhiteElo "2809"]
[BlackElo "2508"]
[TimeControl "180+2"]
[EndTime "10:08:58 PST"]
[Termination "dangerousattack1st won on time"]

1. e4 {[%clk 0:03:01.9]} 1... c5 {[%clk 0:02:58.7]} 2. Nf3 {[%clk 0:03:02.5]}
2... Nc6 {[%clk 0:02:59.4]} 3. d4 {[%clk 0:03:03.5]} 3... cxd4 {[%clk
0:03:00.4]} 4. Nxd4 {[%clk 0:03:05.4]} 4... Qb6 {[%clk 0:03:01.5]} 5. Nb3 {[%clk
0:03:00.6]} 5... Nf6 {[%clk 0:03:01.9]} 6. Be3 {[%clk 0:03:00.7]} 6... Qc7
{[%clk 0:02:49.8]} 7. Nc3 {[%clk 0:03:01.4]} 7... e6 {[%clk 0:02:47.9]} 8. a3
{[%clk 0:02:58.4]} 8... a6 {[%clk 0:02:44.5]} 9. g3 {[%clk 0:02:57.2]} 9... b5
{[%clk 0:02:36.3]} 10. Bg2 {[%clk 0:02:57.2]} 10... Bb7 {[%clk 0:02:37]} 11. O-O
{[%clk 0:02:57.8]} 11... d6 {[%clk 0:02:24.6]} 12. Qd2 {[%clk 0:02:50.5]} 12...
Be7 {[%clk 0:02:21]} 13. f4 {[%clk 0:02:51.2]} 13... Ng4 {[%clk 0:02:14.9]} 14.
Ne2 {[%clk 0:02:41]} 14... O-O {[%clk 0:02:08.3]} 15. Rac1 {[%clk 0:02:41.2]}
15... Nxe3 {[%clk 0:01:59.4]} 16. Qxe3 {[%clk 0:02:41.6]} 16... Bf6 {[%clk
0:01:53.3]} 17. c3 {[%clk 0:02:32.9]} 17... Rad8 {[%clk 0:01:48.2]} 18. Rfd1
{[%clk 0:02:33.8]} 18... Rfe8 {[%clk 0:01:45.2]} 19. Rd2 {[%clk 0:02:34.6]}
19... h6 {[%clk 0:01:29.1]} 20. Rcd1 {[%clk 0:02:33.1]} 20... e5 {[%clk
0:01:17.2]} 21. f5 {[%clk 0:02:31.1]} 21... Bg5 {[%clk 0:01:16.8]} 22. Qf2
{[%clk 0:02:29.2]} 22... Bxd2 {[%clk 0:01:17.4]} 23. Rxd2 {[%clk 0:02:30.2]}
23... f6 {[%clk 0:01:14.6]} 24. Nbc1 {[%clk 0:02:25]} 24... Na5 {[%clk 0:01:13]}
25. Nd3 {[%clk 0:02:22.2]} 25... Nc4 {[%clk 0:01:14]} 26. Rd1 {[%clk 0:02:19.8]}
26... Qb6 {[%clk 0:01:15.2]} 27. Qxb6 {[%clk 0:02:14.7]} 27... Nxb6 {[%clk
0:01:17.1]} 28. Nb4 {[%clk 0:02:12.5]} 28... a5 {[%clk 0:01:17]} 29. Nd5 {[%clk
0:02:09.8]} 29... Bxd5 {[%clk 0:01:17.4]} 30. exd5 {[%clk 0:02:11.7]} 30... Na4
{[%clk 0:01:16.7]} 31. Rd2 {[%clk 0:02:11.9]} 31... Rc8 {[%clk 0:01:17.1]} 32.
Be4 {[%clk 0:02:08.6]} 32... Nc5 {[%clk 0:01:13.1]} 33. Bc2 {[%clk 0:02:06.7]}
33... Rb8 {[%clk 0:01:08.6]} 34. Kf2 {[%clk 0:01:59.4]} 34... Rec8 {[%clk
0:01:05]} 35. Ke3 {[%clk 0:01:56.7]} 35... b4 {[%clk 0:01:04.4]} 36. Bd1 {[%clk
0:01:41.8]} 36... bxa3 {[%clk 0:00:57.8]} 37. bxa3 {[%clk 0:01:43.7]} 37... Rb1
{[%clk 0:00:48.8]} 38. c4 {[%clk 0:01:24.6]} 38... Ra1 {[%clk 0:00:38.5]} 39.
Nc3 {[%clk 0:01:06.3]} 39... Rxa3 {[%clk 0:00:39.3]} 40. Rc2 {[%clk 0:01:07.3]}
40... Na4 {[%clk 0:00:40.1]} 41. Kd3 {[%clk 0:01:05.3]} 41... Nb2+ {[%clk
0:00:35.8]} 42. Rxb2 {[%clk 0:01:04.8]} 42... e4+ {[%clk 0:00:29.7]} 43. Kd4
{[%clk 0:00:59.9]} 43... e3 {[%clk 0:00:24.7]} 44. Be2 {[%clk 0:00:59]} 44...
Ra1 {[%clk 0:00:19.5]} 45. Ne4 {[%clk 0:00:56]} 45... a4 {[%clk 0:00:14.9]} 46.
Nxd6 {[%clk 0:00:57.1]} 46... Ra8 {[%clk 0:00:15.2]} 47. c5 {[%clk 0:00:53.6]}
47... a3 {[%clk 0:00:16.2]} 48. Rc2 {[%clk 0:00:54.4]} 48... a2 {[%clk
0:00:16.7]} 49. Rxa2 {[%clk 0:00:38.8]} 49... R1xa2 {[%clk 0:00:18.6]} 50. Kxe3
{[%clk 0:00:40]} 50... R8a3+ {[%clk 0:00:18.6]} 51. Bd3 {[%clk 0:00:38.4]} 51...
Rc2 {[%clk 0:00:20.1]} 52. Ne4 {[%clk 0:00:34.8]} 52... Kf7 {[%clk 0:00:18.5]}
53. c6 {[%clk 0:00:33.7]} 53... Ke7 {[%clk 0:00:15.1]} 54. Kd4 {[%clk 0:00:30]}
54... Ra4+ {[%clk 0:00:14.6]} 55. Ke3 {[%clk 0:00:29.4]} 55... Ra3 {[%clk
0:00:15.5]} 56. d6+ {[%clk 0:00:29.2]} 56... Kd8 {[%clk 0:00:15.8]} 57. c7+
{[%clk 0:00:26.9]} 57... Kd7 {[%clk 0:00:16.1]} 58. Kd4 {[%clk 0:00:27.3]} 58...
Rxd3+ {[%clk 0:00:13.1]} 59. Kxd3 {[%clk 0:00:27.7]} 59... Rxh2 {[%clk
0:00:12.7]} 60. Nc5+ {[%clk 0:00:26.9]} 60... Kc8 {[%clk 0:00:13.2]} 61. Na4
{[%clk 0:00:27.2]} 1-0